[Event "RUS-ch Women Blitz 2019"]
[Site "Sochi"]
[Date "2019.10.17"]
[Round "12.11"]
[White "Styazhkina, Anna"]
[Black "Kochukova, Anna"]
[Result "1-0"]
[ECO "B40"]
[WhiteElo "2280"]
[BlackElo "2143"]
[Annotator "NA"]
[PlyCount "121"]
[EventDate "2019.10.17"]
[EventType "swiss"]
[EventCountry "RUS"]
[SourceTitle "playchess.com"]
[Source "ChessBase"]
[SourceQuality "1"]
[TimeControl "180+2"]

1. e4 {[%emt 0:00:00]} c5 {[%emt 0:00:00]} 2. Nf3 {[%emt 0:00:01]} e6 {[%emt 0:00:00]} 3. c4 {[%emt 0:00:01]} Nc6 {[%emt 0:00:02]} 4. Nc3 {[%emt 0:00:02]} Nge7 {[%emt 0:00:01]} 5. d4 {[%emt 0:00:06]} cxd4 {[%emt 0:00:01]} 6. Nxd4 {[%emt 0:00:01]} Nxd4 {[%emt 0:00:01]} 7. Qxd4 Nc6 8. Qd1 {[%emt 0:00:26]} Bc5 {[%emt 0:00:11]} 9. Be2 {[%emt 0:00:13]} O-O {[%emt 0:00:18]} 10. O-O {[%emt 0:00:03]} b6 {[%emt 0:00:15]} 11. a3 {[%emt 0:00:15]} Qf6 {[%emt 0:00:06]} 12. Be3 {[%emt 0:00:40]} Bxe3 {[%emt 0:00:08]} 13. fxe3 {[%emt 0:00:01]} Qg5 {[%emt 0:00:02]} 14. Rf3 {[%emt 0:00:04]} Ne5 {[%emt 0:00:30]} 15. Rg3 {[%emt 0:00:03]} Qf6 {[%emt 0:00:05]} 16. Qd4 {[%emt 0:00:15]} g6 {[%emt 0:00:17]} 17. Rf1 Qg7 18. Nb5 {[%emt 0:00:25]} Nc6 {[%emt 0:00:28]} 19. Qd2 {[%emt 0:00:11]} Na5 {[%emt 0:00:22]} 20. Nd6 {[%emt 0:00:14]} Nb7 {[%emt 0:00:04]} 21. Nb5 {[%emt 0:00:13]} Nc5 {[%emt 0:00:02]} 22. Bf3 Bb7 23. Nd6 {[%emt 0:00:09]} Bc6 {[%emt 0:00:04]} 24. b4 {[%emt 0:00:02]} Nb7 {[%emt 0:00:32]} 25. Nxb7 {[%emt 0:00:03]} Bxb7 {[%emt 0:00:01]} 26. Qxd7 {[%emt 0:00:01]} Rab8 {[%emt 0:00:06]} 27. Rd1 {[%emt 0:00:08]} Qe5 {[%emt 0:00:02]} 28. Qd4 {[%emt 0:00:04]} Qg7 {[%emt 0:00:05]} 29. e5 {[%emt 0:00:05]} Bxf3 {[%emt 0:00:02]} 30. Rxf3 {[%emt 0:00:01]} Qh6 {[%emt 0:00:04]} 31. Qd7 {[%emt 0:00:03]} Ra8 {[%emt 0:00:02]} 32. Rdf1 {[%emt 0:00:03]} Qg7 {[%emt 0:00:04]} 33. Rf6 {[%emt 0:00:08]} h5 {[%emt 0:00:01]} 34. c5 {[%emt 0:00:02]} bxc5 {[%emt 0:00:02]} 35. bxc5 {[%emt 0:00:01]} h4 {[%emt 0:00:03]} 36. h3 {[%emt 0:00:01]} a5 {[%emt 0:00:02]} 37. c6 {[%emt 0:00:01]} Rad8 {[%emt 0:00:02]} 38. Qa7 {[%emt 0:00:03]} Rc8 {[%emt 0:00:02]} 39. c7 {[%emt 0:00:03]} a4 {[%emt 0:00:02]} 40. Rc1 {[%emt 0:00:02]} Qh6 {[%emt 0:00:02]} 41. Qd4 {[%emt 0:00:02]} Qg5 {[%emt 0:00:02]} 42. Rf4 {[%emt 0:00:02]} Qh5 {[%emt 0:00:04]} 43. Rxh4 {[%emt 0:00:02]} Qe2 {[%emt 0:00:02]} 44. Rf4 {[%emt 0:00:02]} Qa2 {[%emt 0:00:03]} 45. Qc3 {[%emt 0:00:02]} Qe2 {[%emt 0:00:02]} 46. Rf2 {[%emt 0:00:02]} Qb5 {[%emt 0:00:01]} 47. Rd2 {[%emt 0:00:02]} Qa6 {[%emt 0:00:02]} 48. Qc6 {[%emt 0:00:02]} Qa5 {[%emt 0:00:02]} 49. Qd7 {[%emt 0:00:02]} Qxe5 {[%emt 0:00:02]} 50. Rd3 {[%emt 0:00:03]} Qb2 {[%emt 0:00:02]} 51. Rcd1 {[%emt 0:00:02]} Qa2 {[%emt 0:00:01]} 52. Qxc8 {[%emt 0:00:02]} Rxc8 {[%emt 0:00:02]} 53. Rd8+ {[%emt 0:00:01]} Kg7 {[%emt 0:00:05]} 54. Rxc8 {[%emt 0:00:02]} Qb3 {[%emt 0:00:02]} 55. Rcd8 {[%emt 0:00:02]} Qxe3+ {[%emt 0:00:01]} 56. Kh1 {[%emt 0:00:01]} Qxa3 {[%emt 0:00:05]} 57. c8=Q {[%emt 0:00:02]} Qb3 {[%emt 0:00:02]} 58. Rg8+ {[%emt 0:00:02]} Kh7 {[%emt 0:00:01]} 59. Qd8 {[%emt 0:00:03]} Qb4 {[%emt 0:00:03]} 60. Rh8+ {[%emt 0:00:02]} Kg7 {[%emt 0:00:00]} 61. Qg8+ {[%emt 0:00:02]} 1-0

[Event "RUS-ch Women Blitz 2019"]
[Site "Sochi"]
[Date "2019.10.17"]
[Round "12.12"]
[White "Vifleemskaia, Svetlana"]
[Black "Shafigullina, Zarina"]
[Result "1-0"]
[ECO "E46"]
[WhiteElo "1978"]
[BlackElo "2295"]
[Annotator "NA"]
[PlyCount "141"]
[EventDate "2019.10.17"]
[EventType "swiss"]
[EventCountry "RUS"]
[SourceTitle "playchess.com"]
[Source "ChessBase"]
[SourceQuality "1"]
[TimeControl "180+2"]

1. d4 {[%emt 0:00:00]} Nf6 {[%emt 0:00:00]} 2. c4 {[%emt 0:00:00]} e6 {[%emt 0:00:00]} 3. Nc3 {[%emt 0:00:01]} Bb4 {[%emt 0:00:00]} 4. e3 {[%emt 0:00:00]} O-O {[%emt 0:00:04]} 5. Nge2 {[%emt 0:00:01]} d5 {[%emt 0:00:02]} 6. a3 {[%emt 0:00:03]} Be7 {[%emt 0:00:01]} 7. c5 {[%emt 0:00:26]} Nbd7 {[%emt 0:00:09]} 8. b4 {[%emt 0:00:24]} e5 {[%emt 0:00:17]} 9. Bb2 {[%emt 0:00:03]} exd4 {[%emt 0:00:26]} 10. exd4 {[%emt 0:00:18]} Re8 {[%emt 0:00:04]} 11. g3 {[%emt 0:00:06]} Nf8 {[%emt 0:00:02]} 12. Bg2 {[%emt 0:00:02]} Bg4 {[%emt 0:00:10]} 13. O-O {[%emt 0:00:09]} Qd7 {[%emt 0:00:05]} 14. Qd2 {[%emt 0:00:11]} Bh3 {[%emt 0:00:18]} 15. Nf4 {[%emt 0:00:06]} Bxg2 {[%emt 0:00:02]} 16. Kxg2 {[%emt 0:00:01]} Ng6 {[%emt 0:00:19]} 17. h3 {[%emt 0:00:13]} Bf8 {[%emt 0:00:05]} 18. Rfe1 {[%emt 0:00:03]} Qf5 {[%emt 0:00:08]} 19. Nxg6 {[%emt 0:00:30]} hxg6 {[%emt 0:00:10]} 20. b5 {[%emt 0:00:22]} c6 {[%emt 0:00:05]} 21. a4 {[%emt 0:00:02]} g5 {[%emt 0:00:10]} 22. Rad1 {[%emt 0:00:25]} g6 {[%emt 0:00:02]} 23. Re2 {[%emt 0:00:08]} g4 {[%emt 0:00:30]} 24. hxg4 {[%emt 0:00:03]} Qxg4 {[%emt 0:00:11]} 25. Rde1 {[%emt 0:00:03]} Bg7 {[%emt 0:00:04]} 26. f3 {[%emt 0:00:04]} Qd7 {[%emt 0:00:13]} 27. Qd3 {[%emt 0:00:04]} Rxe2+ {[%emt 0:00:08]} 28. Rxe2 {[%emt 0:00:01]} Re8 {[%emt 0:00:01]} 29. Rxe8+ {[%emt 0:00:02]} Qxe8 {[%emt 0:00:01]} 30. Qe2 {[%emt 0:00:00]} Qd7 {[%emt 0:00:07]} 31. Qd3 {[%emt 0:00:02]} Ne8 {[%emt 0:00:04]} 32. Ne2 {[%emt 0:00:02]} Nc7 {[%emt 0:00:02]} 33. b6 {[%emt 0:00:02]} axb6 {[%emt 0:00:02]} 34. cxb6 {[%emt 0:00:01]} Na6 {[%emt 0:00:01]} 35. Bc3 {[%emt 0:00:02]} Qd8 {[%emt 0:00:01]} 36. a5 {[%emt 0:00:01]} Qd6 {[%emt 0:00:02]} 37. Nf4 {[%emt 0:00:02]} Qa3 {[%emt 0:00:01]} 38. Qe3 {[%emt 0:00:02]} Kf8 {[%emt 0:00:03]} 39. Kf2 {[%emt 0:00:02]} Qa2+ {[%emt 0:00:03]} 40. Qd2 {[%emt 0:00:02]} Qxd2+ 41. Bxd2 {[%emt 0:00:00]} Bxd4+ {[%emt 0:00:04]} 42. Ke2 {[%emt 0:00:00]} Bc5 {[%emt 0:00:02]} 43. Kd3 {[%emt 0:00:01]} Bb4 {[%emt 0:00:01]} 44. g4 {[%emt 0:00:04]} Bxd2 {[%emt 0:00:01]} 45. Kxd2 {[%emt 0:00:01]} Nc5 {[%emt 0:00:02]} 46. Nd3 {[%emt 0:00:02]} Nb3+ {[%emt 0:00:00]} 47. Kc3 {[%emt 0:00:01]} Nxa5 {[%emt 0:00:01]} 48. Kd4 {[%emt 0:00:02]} Nb3+ {[%emt 0:00:04]} 49. Kc3 {[%emt 0:00:02]} Na5 {[%emt 0:00:01]} 50. Kb4 {[%emt 0:00:03]} Nc4 {[%emt 0:00:02]} 51. Kc5 {[%emt 0:00:01]} Ke7 {[%emt 0:00:01]} 52. Nb4 {[%emt 0:00:02]} Nd6 {[%emt 0:00:03]} 53. f4 {[%emt 0:00:06]} f5 {[%emt 0:00:02]} 54. gxf5 {[%emt 0:00:01]} gxf5 {[%emt 0:00:00]} 55. Kd4 {[%emt 0:00:04]} Ke6 {[%emt 0:00:03]} 56. Nd3 {[%emt 0:00:02]} Nc4 {[%emt 0:00:02]} 57. Kc5 {[%emt 0:00:01]} Nd2 {[%emt 0:00:03]} 58. Ne5 {[%emt 0:00:03]} Nb3+ {[%emt 0:00:04]} 59. Kb4 {[%emt 0:00:01]} Nd4 {[%emt 0:00:01]} 60. Kc5 {[%emt 0:00:01]} Nb3+ {[%emt 0:00:02]} 61. Kb4 {[%emt 0:00:01]} Nd2 {[%emt 0:00:02]} 62. Nxc6 {[%emt 0:00:02]} Kd6 {[%emt 0:00:02]} 63. Nd4 {[%emt 0:00:01]} Nc4 {[%emt 0:00:03]} 64. Nxf5+ {[%emt 0:00:01]} Kc6 {[%emt 0:00:01]} 65. Ne7+ {[%emt 0:00:01]} Kxb6 {[%emt 0:00:01]} 66. Nxd5+ {[%emt 0:00:01]} Kc6 {[%emt 0:00:01]} 67. Kxc4 {[%emt 0:00:01]} b5+ {[%emt 0:00:00]} 68. Kd4 {[%emt 0:00:02]} Kd6 {[%emt 0:00:01]} 69. f5 {[%emt 0:00:01]} Kd7 {[%emt 0:00:03]} 70. Ke5 {[%emt 0:00:00]} Ke8 {[%emt 0:00:00]} 71. Ke6 {[%emt 0:00:02]} 1-0

[Event "RUS-ch Women Blitz 2019"]
[Site "Sochi"]
[Date "2019.10.17"]
[Round "13.2"]
[White "Voit, Daria"]
[Black "Bodnaruk, Anastasia"]
[Result "0-1"]
[ECO "A48"]
[WhiteElo "2336"]
[BlackElo "2419"]
[Annotator "NA"]
[PlyCount "130"]
[EventDate "2019.10.17"]
[EventType "swiss"]
[EventCountry "RUS"]
[SourceTitle "playchess.com"]
[Source "ChessBase"]
[SourceQuality "1"]
[TimeControl "180+2"]

1. d4 {[%emt 0:00:00]} Nf6 {[%emt 0:00:00]} 2. Nf3 {[%emt 0:00:00]} g6 {[%emt 0:00:00]} 3. c4 {[%emt 0:00:01]} Bg7 {[%emt 0:00:01]} 4. Nc3 {[%emt 0:00:01]} O-O {[%emt 0:00:03]} 5. Bg5 {[%emt 0:00:02]} c5 {[%emt 0:00:12]} 6. d5 {[%emt 0:00:06]} h6 {[%emt 0:00:06]} 7. Bh4 {[%emt 0:00:01]} d6 {[%emt 0:00:00]} 8. e3 {[%emt 0:00:02]} g5 {[%emt 0:00:08]} 9. Bg3 {[%emt 0:00:01]} Nh5 {[%emt 0:00:08]} 10. Nd2 {[%emt 0:00:01]} Nxg3 {[%emt 0:00:01]} 11. hxg3 {[%emt 0:00:02]} f5 {[%emt 0:00:05]} 12. Bd3 {[%emt 0:00:02]} Na6 {[%emt 0:00:07]} 13. f4 {[%emt 0:00:31]} e5 {[%emt 0:00:36]} 14. dxe6 {[%emt 0:00:09]} Bxe6 {[%emt 0:00:02]} 15. fxg5 {[%emt 0:00:30]} Qxg5 {[%emt 0:00:07]} 16. Kf2 {[%emt 0:00:07]} Be5 {[%emt 0:00:26]} 17. Ne2 {[%emt 0:00:02]} Nb4 {[%emt 0:00:05]} 18. Nf3 {[%emt 0:00:03]} Qg7 {[%emt 0:00:09]} 19. Nf4 {[%emt 0:00:04]} Rae8 {[%emt 0:00:11]} 20. Be2 {[%emt 0:00:43]} Bf7 {[%emt 0:00:11]} 21. a3 {[%emt 0:00:06]} Nc6 {[%emt 0:00:02]} 22. Rb1 {[%emt 0:00:07]} Re7 {[%emt 0:00:09]} 23. b4 {[%emt 0:00:06]} Rfe8 {[%emt 0:00:13]} 24. Rh3 {[%emt 0:00:09]} Bf6 {[%emt 0:00:13]} 25. Nd5 {[%emt 0:00:17]} Re4 {[%emt 0:00:10]} 26. Rb3 {[%emt 0:00:08]} Bg5 {[%emt 0:00:11]} 27. Nxg5 {[%emt 0:00:06]} hxg5 {[%emt 0:00:01]} 28. bxc5 {[%emt 0:00:06]} dxc5 {[%emt 0:00:06]} 29. Rxb7 {[%emt 0:00:03]} Na5 {[%emt 0:00:06]} 30. Rxa7 {[%emt 0:00:06]} Nxc4 {[%emt 0:00:02]} 31. Bxc4 {[%emt 0:00:04]} Rxc4 {[%emt 0:00:01]} 32. Ne7+ {[%emt 0:00:02]} Rxe7 {[%emt 0:00:04]} 33. Rxe7 {[%emt 0:00:02]} Qb2+ {[%emt 0:00:02]} 34. Kg1 {[%emt 0:00:12]} Rc1 {[%emt 0:00:01]} 35. Qxc1 {[%emt 0:00:01]} Qxc1+ {[%emt 0:00:01]} 36. Kh2 {[%emt 0:00:01]} c4 {[%emt 0:00:03]} 37. Rh6 {[%emt 0:00:04]} c3 {[%emt 0:00:04]} 38. Rf6 {[%emt 0:00:01]} Bb3 {[%emt 0:00:03]} 39. Rb6 {[%emt 0:00:02]} Bf7 {[%emt 0:00:03]} 40. Rf6 {[%emt 0:00:02]} c2 {[%emt 0:00:03]} 41. Rfxf7 {[%emt 0:00:02]} Qb2 {[%emt 0:00:01]} 42. Rc7 {[%emt 0:00:04]} c1=Q {[%emt 0:00:03]} 43. Rxc1 {[%emt 0:00:02]} Qxc1 {[%emt 0:00:01]} 44. Rxf5 {[%emt 0:00:02]} Qxe3 {[%emt 0:00:00]} 45. Rf3 {[%emt 0:00:02]} Qc5 {[%emt 0:00:01]} 46. g4 {[%emt 0:00:02]} Kg7 {[%emt 0:00:01]} 47. Kg3 {[%emt 0:00:03]} Kg6 {[%emt 0:00:01]} 48. Kh2 {[%emt 0:00:02]} Qc1 {[%emt 0:00:02]} 49. Rh3 {[%emt 0:00:02]} Qf4+ {[%emt 0:00:01]} 50. Rg3 {[%emt 0:00:02]} Kf6 {[%emt 0:00:03]} 51. Kh3 {[%emt 0:00:01]} Ke6 {[%emt 0:00:01]} 52. Rf3 {[%emt 0:00:02]} Qc1 {[%emt 0:00:01]} 53. Kh2 {[%emt 0:00:01]} Qc4 {[%emt 0:00:02]} 54. Rg3 {[%emt 0:00:02]} Qf4 {[%emt 0:00:02]} 55. Kh3 {[%emt 0:00:00]} Qf1 {[%emt 0:00:01]} 56. Kh2 {[%emt 0:00:01]} Qd1 {[%emt 0:00:04]} 57. Re3+ {[%emt 0:00:02]} Kd5 {[%emt 0:00:04]} 58. Rf3 {[%emt 0:00:01]} Ke4 {[%emt 0:00:01]} 59. Rg3 {[%emt 0:00:02]} Kf4 {[%emt 0:00:01]} 60. Rf3+ {[%emt 0:00:03]} Kxg4 {[%emt 0:00:02]} 61. Rg3+ {[%emt 0:00:00]} Kf5 {[%emt 0:00:02]} 62. Rf3+ {[%emt 0:00:01]} Kg6 {[%emt 0:00:00]} 63. Rg3 {[%emt 0:00:06]} Qd6 {[%emt 0:00:03]} 64. Kh3 {[%emt 0:00:01]} Kh5 {[%emt 0:00:03]} 65. Re3 {[%emt 0:00:04]} g4# {[%emt 0:00:01]} 0-1

[Event "RUS-ch Women Blitz 2019"]
[Site "Sochi"]
[Date "2019.10.17"]
[Round "13.3"]
[White "Maltsevskaya, Aleksandra"]
[Black "Pogonina, Natalija"]
[Result "0-1"]
[ECO "A06"]
[WhiteElo "2333"]
[BlackElo "2479"]
[Annotator "ChessBase"]
[PlyCount "166"]
[EventDate "2019.10.17"]
[EventType "swiss"]
[EventCountry "RUS"]
[SourceTitle "playchess.com"]
[Source "ChessBase"]
[SourceQuality "1"]
[TimeControl "180+2"]

1. Nf3 {[%emt 0:00:00]} d5 {[%emt 0:00:00]} 2. g3 {[%emt 0:00:00]} Nf6 {[%emt 0:00:02]} 3. d3 {[%emt 0:00:01]} e6 {[%emt 0:00:03]} 4. Nbd2 {[%emt 0:00:02]} Be7 {[%emt 0:00:02]} 5. Bg2 {[%emt 0:00:01]} O-O {[%emt 0:00:03]} 6. O-O {[%emt 0:00:02]} a5 {[%emt 0:00:01]} 7. e4 {[%emt 0:00:01]} a4 {[%emt 0:00:02]} 8. a3 {[%emt 0:00:06]} c5 {[%emt 0:00:06]} 9. exd5 {[%emt 0:00:05]} exd5 {[%emt 0:00:04]} 10. d4 {[%emt 0:00:11]} Nc6 {[%emt 0:00:05]} 11. dxc5 {[%emt 0:00:04]} Bxc5 {[%emt 0:00:02]} 12. b4 {[%emt 0:00:11]} axb3 {[%emt 0:00:05]} 13. Nxb3 {[%emt 0:00:00]} Bb6 {[%emt 0:00:08]} 14. Nfd4 {[%emt 0:00:11]} Bg4 {[%emt 0:00:16]} 15. f3 {[%emt 0:00:28]} Ra4 {[%emt 0:00:22]} 16. Be3 {[%emt 0:00:10]} Re8 {[%emt 0:00:07]} 17. Bf2 {[%emt 0:00:01]} Bd7 {[%emt 0:00:11]} 18. Qd2 {[%emt 0:00:28]} h6 {[%emt 0:00:07]} 19. Rfe1 {[%emt 0:00:02]} Rxe1+ {[%emt 0:00:07]} 20. Rxe1 {[%emt 0:00:01]} Rxa3 {[%emt 0:00:06]} 21. Nb5 {[%emt 0:00:45]} Ra2 {[%emt 0:00:15]} 22. Nd6 {[%emt 0:00:15]} Bxf2+ {[%emt 0:00:13]} 23. Qxf2 {[%emt 0:00:01]} Nb4 {[%emt 0:00:24]} 24. Qc5 {[%emt 0:00:23]} Nxc2 {[%emt 0:00:21]} 25. Re2 {[%emt 0:00:00]} Nb4 {[%emt 0:00:16]} 26. Rxa2 {[%emt 0:00:11]} Nxa2 {[%emt 0:00:01]} 27. Nxb7 {[%emt 0:00:01]} Qc8 {[%emt 0:00:04]} 28. Nd6 {[%emt 0:00:04]} Qxc5+ {[%emt 0:00:04]} 29. Nxc5 {[%emt 0:00:01]} Nc3 {[%emt 0:00:04]} 30. f4 {[%emt 0:00:04]} Bc6 {[%emt 0:00:07]} 31. Nf5 {[%emt 0:00:03]} Kf8 {[%emt 0:00:02]} 32. Nd4 {[%emt 0:00:02]} Be8 {[%emt 0:00:03]} 33. h3 {[%emt 0:00:02]} Nce4 {[%emt 0:00:03]} 34. Nxe4 {[%emt 0:00:02]} dxe4 {[%emt 0:00:03]} 35. g4 {[%emt 0:00:01]} g5 {[%emt 0:00:02]} 36. fxg5 {[%emt 0:00:02]} hxg5 {[%emt 0:00:01]} 37. h4 {[%emt 0:00:03]} gxh4 {[%emt 0:00:02]} 38. g5 {[%emt 0:00:00]} Nh7 {[%emt 0:00:01]} 39. Bxe4 {[%emt 0:00:04]} Nxg5 {[%emt 0:00:01]} 40. Bg2 {[%emt 0:00:02]} Bd7 {[%emt 0:00:01]} 41. Bd5 {[%emt 0:00:06]} Kg7 {[%emt 0:00:01]} 42. Kh2 {[%emt 0:00:01]} Kf6 {[%emt 0:00:02]} 43. Bb7 {[%emt 0:00:02]} Ke5 {[%emt 0:00:02]} 44. Ne2 {[%emt 0:00:03]} Bg4 {[%emt 0:00:02]} 45. Ng1 {[%emt 0:00:01]} Kf4 {[%emt 0:00:03]} 46. Bc6 {[%emt 0:00:02]} f5 {[%emt 0:00:01]} 47. Kg2 {[%emt 0:00:02]} Ke3 {[%emt 0:00:03]} 48. Bd7 {[%emt 0:00:02]} Kf4 {[%emt 0:00:07]} 49. Bc6 {[%emt 0:00:02]} Ne6 {[%emt 0:00:02]} 50. Bd7 {[%emt 0:00:04]} Nd4 {[%emt 0:00:02]} 51. Bc8 {[%emt 0:00:01]} Nc2 {[%emt 0:00:01]} 52. Bb7 {[%emt 0:00:02]} Ne3+ {[%emt 0:00:01]} 53. Kh2 {[%emt 0:00:00]} Bh5 {[%emt 0:00:03]} 54. Nh3+ {[%emt 0:00:02]} Ke5 {[%emt 0:00:01]} 55. Ng1 {[%emt 0:00:03]} Bg4 {[%emt 0:00:03]} 56. Ba8 {[%emt 0:00:03]} f4 {[%emt 0:00:02]} 57. Bf3 {[%emt 0:00:01]} Bf5 {[%emt 0:00:02]} 58. Bc6 {[%emt 0:00:02]} Be4 {[%emt 0:00:04]} 59. Bd7 {[%emt 0:00:04]} f3 {[%emt 0:00:03]} 60. Nxf3+ {[%emt 0:00:02]} Bxf3 {[%emt 0:00:02]} 61. Kh3 {[%emt 0:00:01]} Ng2 {[%emt 0:00:02]} 62. Bc8 {[%emt 0:00:02]} Kf4 {[%emt 0:00:01]} 63. Bd7 {[%emt 0:00:02]} Kg5 {[%emt 0:00:01]} 64. Bc8 {[%emt 0:00:03]} Nf4+ 65. Kh2 Bg4 {[%emt 0:00:02]} 66. Bb7 {[%emt 0:00:01]} Kf5 {[%emt 0:00:02]} 67. Bc8+ {[%emt 0:00:01]} Kg5 {[%emt 0:00:02]} 68. Bb7 {[%emt 0:00:01]} Kf6 {[%emt 0:00:01]} 69. Bc6 {[%emt 0:00:02]} Ke5 {[%emt 0:00:01]} 70. Bb7 {[%emt 0:00:01]} Kd4 {[%emt 0:00:01]} 71. Bc6 {[%emt 0:00:01]} Ke3 {[%emt 0:00:01]} 72. Bb7 {[%emt 0:00:01]} Kf2 {[%emt 0:00:01]} 73. Bc6 {[%emt 0:00:01]} h3 {[%emt 0:00:07]} 74. Bb7 {[%emt 0:00:04]} Nd3 {[%emt 0:00:02]} 75. Bg2 {[%emt 0:00:03]} Nf4 {[%emt 0:00:05]} 76. Be4 {[%emt 0:00:04]} Be6 {[%emt 0:00:03]} 77. Bc6 {[%emt 0:00:03]} Bc4 {[%emt 0:00:03]} 78. Bb7 {[%emt 0:00:02]} Bf1 {[%emt 0:00:02]} 79. Be4 {[%emt 0:00:01]} Ne6 {[%emt 0:00:02]} 80. Bf5 {[%emt 0:00:04]} Ng5 {[%emt 0:00:01]} 81. Bg4 {[%emt 0:00:04]} Nf3+ {[%emt 0:00:01]} 82. Bxf3 {[%emt 0:00:02]} Kxf3 {[%emt 0:00:02]} 83. Kg1 {[%emt 0:00:00]} Kg3 {[%emt 0:00:03]} 0-1

[Event "RUS-ch Women Blitz 2019"]
[Site "Sochi"]
[Date "2019.10.17"]
[Round "13.4"]
[White "Afonasieva, Anna"]
[Black "Belenkaya, Dina"]
[Result "0-1"]
[ECO "D25"]
[WhiteElo "2312"]
[BlackElo "2300"]
[Annotator "NA"]
[PlyCount "138"]
[EventDate "2019.10.17"]
[EventType "swiss"]
[EventCountry "RUS"]
[SourceTitle "playchess.com"]
[Source "ChessBase"]
[SourceQuality "1"]
[TimeControl "180+2"]

1. d4 {[%emt 0:00:00]} d5 {[%emt 0:00:00]} 2. Nf3 {[%emt 0:00:00]} Nf6 {[%emt 0:00:00]} 3. c4 {[%emt 0:00:00]} dxc4 {[%emt 0:00:01]} 4. e3 {[%emt 0:00:01]} a6 {[%emt 0:00:01]} 5. Bxc4 {[%emt 0:00:02]} e6 {[%emt 0:00:01]} 6. O-O {[%emt 0:00:02]} c5 {[%emt 0:00:01]} 7. Nc3 {[%emt 0:00:09]} b5 {[%emt 0:00:02]} 8. Be2 {[%emt 0:00:02]} Nbd7 {[%emt 0:00:04]} 9. b3 {[%emt 0:00:05]} Bb7 {[%emt 0:00:02]} 10. Bb2 {[%emt 0:00:01]} Be7 {[%emt 0:00:16]} 11. Rc1 {[%emt 0:00:15]} O-O {[%emt 0:00:02]} 12. dxc5 {[%emt 0:00:10]} Bxc5 {[%emt 0:00:10]} 13. Bd3 {[%emt 0:00:14]} Qb6 {[%emt 0:00:07]} 14. e4 {[%emt 0:00:08]} Rfd8 {[%emt 0:00:13]} 15. Qe2 {[%emt 0:00:02]} Ng4 {[%emt 0:00:03]} 16. Bb1 {[%emt 0:00:15]} Rac8 {[%emt 0:00:17]} 17. Nd1 {[%emt 0:00:07]} f6 {[%emt 0:00:33]} 18. h3 {[%emt 0:00:05]} Nge5 {[%emt 0:00:01]} 19. Nxe5 {[%emt 0:00:17]} Nxe5 {[%emt 0:00:02]} 20. Kh1 {[%emt 0:00:02]} Bd4 {[%emt 0:00:03]} 21. f4 {[%emt 0:00:13]} Bxb2 {[%emt 0:00:15]} 22. Nxb2 {[%emt 0:00:04]} Ng6 {[%emt 0:00:10]} 23. Rxc8 {[%emt 0:00:06]} Rxc8 {[%emt 0:00:03]} 24. e5 {[%emt 0:00:23]} f5 {[%emt 0:00:03]} 25. Qe1 {[%emt 0:00:21]} Qd4 {[%emt 0:00:03]} 26. Nd3 {[%emt 0:00:03]} Be4 {[%emt 0:00:05]} 27. Qf2 {[%emt 0:00:26]} Qxf2 {[%emt 0:00:30]} 28. Nxf2 {[%emt 0:00:01]} Bxb1 {[%emt 0:00:02]} 29. Rxb1 {[%emt 0:00:01]} Nxf4 {[%emt 0:00:01]} 30. g3 {[%emt 0:00:06]} Ne2 {[%emt 0:00:03]} 31. Kg2 {[%emt 0:00:04]} Rc2 {[%emt 0:00:02]} 32. Kf3 {[%emt 0:00:10]} Nc3 {[%emt 0:00:02]} 33. Re1 {[%emt 0:00:03]} Rxa2 {[%emt 0:00:03]} 34. Rc1 {[%emt 0:00:01]} Nd5 {[%emt 0:00:04]} 35. Rc8+ {[%emt 0:00:01]} Kf7 {[%emt 0:00:01]} 36. Nd3 {[%emt 0:00:02]} a5 {[%emt 0:00:11]} 37. Ra8 {[%emt 0:00:03]} a4 {[%emt 0:00:03]} 38. Ra7+ {[%emt 0:00:01]} Kg6 {[%emt 0:00:03]} 39. bxa4 {[%emt 0:00:01]} bxa4 {[%emt 0:00:04]} 40. Nc5 {[%emt 0:00:01]} Ra3+ {[%emt 0:00:02]} 41. Kf2 {[%emt 0:00:02]} Nc3 {[%emt 0:00:04]} 42. Nxe6 {[%emt 0:00:01]} Ne4+ {[%emt 0:00:01]} 43. Ke1 {[%emt 0:00:02]} Nxg3 {[%emt 0:00:10]} 44. Rxg7+ {[%emt 0:00:04]} Kh6 {[%emt 0:00:01]} 45. Rf7 {[%emt 0:00:04]} Rf3 {[%emt 0:00:09]} 46. Nd4 {[%emt 0:00:03]} Rf4 {[%emt 0:00:04]} 47. Nb5 {[%emt 0:00:05]} Re4+ {[%emt 0:00:01]} 48. Kf2 {[%emt 0:00:01]} Nh5 {[%emt 0:00:04]} 49. Rxf5 {[%emt 0:00:01]} Ng7 {[%emt 0:00:06]} 50. Rf6+ {[%emt 0:00:01]} Kg5 {[%emt 0:00:01]} 51. Nd6 {[%emt 0:00:01]} Rf4+ {[%emt 0:00:04]} 52. Rxf4 {[%emt 0:00:03]} Kxf4 {[%emt 0:00:02]} 53. Nc4 {[%emt 0:00:02]} Ne6 {[%emt 0:00:02]} 54. Ke2 {[%emt 0:00:02]} Ke4 {[%emt 0:00:03]} 55. Kf2 {[%emt 0:00:01]} Kd4 {[%emt 0:00:02]} 56. Na3 {[%emt 0:00:02]} Kc3 {[%emt 0:00:02]} 57. Kf3 {[%emt 0:00:02]} Kd4 {[%emt 0:00:02]} 58. Kg4 {[%emt 0:00:02]} Kxe5 {[%emt 0:00:02]} 59. Kh5 {[%emt 0:00:01]} Kf4 {[%emt 0:00:05]} 60. Kh6 {[%emt 0:00:03]} Nf8 {[%emt 0:00:02]} 61. Kg7 {[%emt 0:00:01]} h5 {[%emt 0:00:01]} 62. Kxf8 {[%emt 0:00:06]} h4 {[%emt 0:00:01]} 63. Ke7 {[%emt 0:00:03]} Kg3 {[%emt 0:00:00]} 64. Kf6 {[%emt 0:00:01]} Kxh3 {[%emt 0:00:01]} 65. Ke5 {[%emt 0:00:01]} Kg2 {[%emt 0:00:01]} 66. Nc2 {[%emt 0:00:02]} h3 {[%emt 0:00:02]} 67. Ne3+ {[%emt 0:00:02]} Kf3 {[%emt 0:00:02]} 68. Nf1 {[%emt 0:00:01]} a3 {[%emt 0:00:01]} 69. Kd4 {[%emt 0:00:03]} a2 {[%emt 0:00:01]} 0-1

[Event "RUS-ch Women Blitz 2019"]
[Site "Sochi"]
[Date "2019.10.17"]
[Round "13.5"]
[White "Sukhareva, Evgeniya"]
[Black "Guseva, Marina"]
[Result "1-0"]
[ECO "E34"]
[WhiteElo "2122"]
[BlackElo "2366"]
[Annotator "NA"]
[PlyCount "63"]
[EventDate "2019.10.17"]
[EventType "swiss"]
[EventCountry "RUS"]
[SourceTitle "playchess.com"]
[Source "ChessBase"]
[SourceQuality "1"]
[TimeControl "180+2"]

1. d4 {[%emt 0:00:00]} Nf6 {[%emt 0:00:00]} 2. c4 {[%emt 0:00:00]} e6 {[%emt 0:00:00]} 3. Nc3 {[%emt 0:00:01]} Bb4 {[%emt 0:00:01]} 4. Qc2 {[%emt 0:00:02]} d5 {[%emt 0:00:11]} 5. cxd5 {[%emt 0:00:05]} Qxd5 {[%emt 0:00:12]} 6. Nf3 {[%emt 0:00:07]} Qf5 {[%emt 0:00:16]} 7. Qb3 {[%emt 0:00:20]} Nc6 {[%emt 0:00:20]} 8. e3 {[%emt 0:00:02]} O-O {[%emt 0:00:07]} 9. Be2 {[%emt 0:00:08]} Bd6 {[%emt 0:00:12]} 10. e4 {[%emt 0:00:28]} Qg4 {[%emt 0:00:43]} 11. e5 {[%emt 0:00:09]} Nxd4 {[%emt 0:00:03]} 12. Nxd4 {[%emt 0:00:11]} Qxd4 {[%emt 0:00:06]} 13. exd6 {[%emt 0:00:07]} cxd6 {[%emt 0:00:02]} 14. Be3 {[%emt 0:00:04]} Qh4 {[%emt 0:00:02]} 15. Qa4 {[%emt 0:00:27]} Qxa4 {[%emt 0:00:05]} 16. Nxa4 {[%emt 0:00:01]} Bd7 {[%emt 0:00:01]} 17. Nc3 {[%emt 0:00:02]} Bc6 {[%emt 0:00:00]} 18. O-O {[%emt 0:00:03]} e5 {[%emt 0:00:03]} 19. f4 {[%emt 0:00:10]} Rfe8 {[%emt 0:00:07]} 20. fxe5 {[%emt 0:00:06]} dxe5 {[%emt 0:00:01]} 21. Rad1 {[%emt 0:00:04]} a6 {[%emt 0:00:09]} 22. Bg5 {[%emt 0:00:13]} Ne4 {[%emt 0:00:08]} 23. Nxe4 {[%emt 0:00:09]} Bxe4 {[%emt 0:00:00]} 24. Bc4 {[%emt 0:00:01]} Bg6 {[%emt 0:00:15]} 25. Rd7 {[%emt 0:00:01]} Rf8 {[%emt 0:00:15]} 26. Be7 {[%emt 0:00:01]} Rfc8 {[%emt 0:00:02]} 27. Bd5 {[%emt 0:00:05]} Rc2 {[%emt 0:00:06]} 28. Ba3 {[%emt 0:00:02]} Rac8 {[%emt 0:00:04]} 29. Bxb7 {[%emt 0:00:10]} Re8 {[%emt 0:00:03]} 30. Bd5 {[%emt 0:00:04]} e4 {[%emt 0:00:02]} 31. Bb3 {[%emt 0:00:08]} Rc6 {[%emt 0:00:09]} 32. Rdxf7 {[%emt 0:00:09]} 1-0